Cogmind - Beta 15 @@@ ROGUE MODE // 2025.05.12 @ 17:18:48 Player: 7604 Result: Destroyed by as-39376 with Assembled Gauss Rifle Performance ------------- Evolutions (3) 1500 Regions Visited (14) 2800 Robots Destroyed (162) 810 Value Destroyed (6020) 6020 Prototype IDs (48) 960 Alien Tech Used (0) 0 Bonus (2772) 2772 TOTAL SCORE: 14862 Bonus ------- High Alert Combat Kills 245 Entered Garrisons 200 Met Imprinter 300 Destroyed Z-Imprinter 1000 Triggered Deep Caves Wall 500 Exposed GOLEM Chamber 500 Acquired ECA 300 Friendly Fire -273 Cogmind --------- Core Integrity 0/700 Matter 59/300 Energy 82/700 System Corruption 0% Temperature Cool (13) Movement Core (50) Location -7/Deep Caves Parts ------- > --- POWER (1) -------- (None) > --- PROPULSION (4) --- Assembled Alloy Leg > --- UTILITY (5) ------ Zionite Biocell GOLEM Unit > --- WEAPON (3) ------- (None) > --- INVENTORY (5) ---- Zionite Light DM Reactor Experimental Sensor Array Advanced System Shield Hacking Drone Bay CR-A16's Pointy Stick Peak State ------------ > --- POWER ------------ Zionite Light DM Reactor > --- PROPULSION ------- Heavy Treads Heavy Treads > --- UTILITY ---------- Experimental Heat Sink Huge Storage Unit Zionite Biocell Experimental Reaction Control System Medium Reactive Plating > --- WEAPON ----------- AWS/Autocannon > --- INVENTORY -------- Improved Deuterium Engine Micro Nuclear Core Advanced Treads Advanced Treads Improved Heat Sink Improved Cooling System Experimental Sensor Array Seismic Detector Encrypted Comm Array Weapon Mount Makeshift ECM Suite Phase Shifter Hardened Medium Armor Plating Advanced System Shield Hacking Drone Bay Gatling Laser EM Pulse Cannon Improved EM Pulse Cannon Improved Grenade Launcher Heavy Missile Launcher Improved Datajack Plasma Cutter Multitool Makeshift Sword CR-A16's Pointy Stick [Rating: 100] Favorites ----------- Power Improved Deuterium Engine Engine Improved Deuterium Engine Power Core Micro Nuclear Core Reactor Antimatter Reactor Propulsion Light Treads Treads Light Treads Leg Assembled Alloy Leg Wheel Armored Huge Wheel Utility Seismic Detector Device Seismic Detector Storage Huge Storage Unit Processor Advanced Terrain Scan Processor Hackware Hacking Suite Protection Hardened Medium Armor Plating Weapon Gauss Rifle Energy Gun Gatling Laser Energy Cannon EM Pulse Cannon Ballistic Gun Gauss Rifle Ballistic Cannon AWS/Autocannon Launcher Improved Grenade Launcher Special Weapon Mining Laser Impact Weapon Impact Mace Slashing Weapon Makeshift Sword Piercing Weapon CR-A16's Pointy Stick Special Melee Weapon Datajack Build | -11 -10 -10 -10 -9 -8 -8 -8 -7 -7 -7 -7 -7 -7 -7 ------- Run | Yrd Mat Min Exi Min Mat Gar Mat Fac Was Fac Low Low Zio Dee Slots Evolved 6 | . . . . . 4 . . 2 . . . . . . Power . | . . . . . . . . . . . . . . . Propulsion 2 | . . . . . 2 . . . . . . . . . Utility 3 | . . . . . 2 . . 1 . . . . . . Weapon 1 | . . . . . . . . 1 . . . . . . Parts Attached 148 | 8 8 9 2 1 18 10 13 14 2 29 3 3 8 20 Power 12 | 1 . 1 . . 1 2 1 . 1 2 . 2 . 1 Engine 6 | 1 . 1 . . . 1 1 . . . . 2 . . Core 4 | . . . . . 1 1 . . . 2 . . . . Reactor 2 | . . . . . . . . . 1 . . . . 1 Propulsion 37 | 2 3 1 . . 7 3 7 3 . 8 . . 1 2 Treads 28 | 2 3 1 . . 7 3 7 . . 2 . . 1 2 Leg . | . . . . . . . . . . . . . . . Wheel 9 | . . . . . . . . 3 . 6 . . . . Hover . | . . . . . . . . . . . . . . . Flight . | . . . . . . . . . . . . . . . Utility 52 | 3 2 1 1 1 3 4 4 5 1 10 2 . 3 12 Device 22 | 2 . . 1 1 1 2 1 2 1 4 1 . 3 3 Storage 5 | 1 2 . . . . . . 1 . . . . . 1 Processor 3 | . . . . . . . . 1 . 1 . . . 1 Hackware 1 | . . . . . 1 . . . . . . . . . Protection 21 | . . 1 . . 1 2 3 1 . 5 1 . . 7 Artifact . | . . . . . . . . . . . . . . . Weapon 47 | 2 3 6 1 . 7 1 1 6 . 9 1 1 4 5 Energy Gun 10 | . . . . . 1 . 1 . . 4 . . 1 3 Energy Cannon 5 | . 2 1 . . . . . 1 . . 1 . . . Ballistic Gun 13 | 2 1 2 1 . 3 1 . 1 . 2 . . . . Ballistic Cannon 3 | . . . . . . . . 2 . . . . 1 . Launcher 5 | . . 2 . . 2 . . . . 1 . . . . Special Weapon 3 | . . . . . 1 . . . . . . . 1 1 Impact Weapon 1 | . . . . . . . . 1 . . . . . . Slashing Weapon 4 | . . . . . . . . 1 . 2 . 1 . . Piercing Weapon 1 | . . . . . . . . . . . . . . 1 Special Melee Weapon 2 | . . 1 . . . . . . . . . . 1 . Unidentified Prototypes 20 | . . . . 1 3 . 1 2 . 3 . . . 10 Corrupted Parts 1 | . . . . . . . . 1 . . . . . . System Corruption 4 | . . . . . . . . 4 . . . . . . Parts Lost 33 | . . 1 . . 1 6 1 1 . 4 1 . . 18 Power 2 | . . . . . . . 1 . . . . . . 1 Propulsion 10 | . . . . . . 4 . . . 2 . . . 4 Utility 13 | . . . . . 1 1 . . . 2 . . . 9 Weapon 8 | . . 1 . . . 1 . 1 . . 1 . . 4 Highest Loss Streak 13 | . . 1 . . 1 3 1 1 . 2 1 . . 13 To Critical Strikes 1 | . . . . . . . . . . . . . . 1 Average Backups 19 | 4 13 19 18 18 17 16 17 21 21 19 17 18 23 24 Power . | . 1 . . . . . . . 1 . . . . 1 Propulsion 2 | . 1 3 3 3 2 1 4 5 4 4 5 5 2 1 Utility 7 | 2 5 8 8 8 7 6 6 6 6 7 6 6 9 12 Weapon 5 | 1 5 7 6 6 6 6 5 6 7 5 3 3 6 4 Tool/Special . | . . . . . . . . . . . . . . . Unused Backups 31 | 2 2 1 2 . . 2 1 6 4 2 . 1 1 7 Power 1 | . . 1 . . . . . . . . . . . . Propulsion 10 | . . . . . . . . 6 2 . . 1 1 . Utility 13 | 2 1 . . . . 1 1 . 1 2 . . . 5 Weapon 6 | . 1 . 2 . . 1 . . 1 . . . . 1 Tool/Special 1 | . . . . . . . . . . . . . . 1 Average Slot Usage (%) 88 | . 100 100 100 100 99 99 100 99 92 85 72 76 66 68 Engine 7 | . 14 14 14 14 5 5 9 7 2 . . 3 7 6 Core 1 | . . . . . 3 3 . . . 5 7 3 . . Treads 20 | . 28 28 28 28 35 35 36 19 . . . . 13 14 Wheel 4 | . . . . . . . . 9 23 20 15 15 1 . Device 10 | . 14 13 13 13 12 7 11 18 15 12 8 7 4 1 Storage 9 | . 14 14 14 14 9 9 9 7 7 7 7 7 6 7 Processor 1 | . . . . . . . . 2 7 7 . . . . Hackware 1 | . . . . . . 9 9 4 . . . . . . Protection 8 | . . . . . 14 10 6 4 7 9 15 15 17 20 Energy Cannon 4 | . 4 13 10 . . . . 3 5 . 4 7 3 8 Ballistic Gun 11 | . 23 13 13 28 17 15 15 5 . 11 5 7 . . Ballistic Cannon 1 | . . . . . . . . 6 . . . . 3 2 Slashing Weapon 1 | . . . . . . . . 2 . 5 2 3 2 3 Peak Build Rating 100 | 9 11 12 18 25 33 30 41 54 52 59 64 56 84 100 Average Rating 41 | 8 8 11 14 23 27 29 37 46 51 53 53 54 73 78 On Entrance 34 | . 8 9 11 18 18 30 30 37 52 52 59 56 56 84 Naked Turns . | . . . . . . . . . . . . . . . Heaviest Build 198 | 14 51 56 55 55 66 64 69 122 126 135 150 131 198 198 Greatest Support 140 | 40 40 40 40 40 80 80 92 83 60 60 56 56 140 140 Greatest Overweight (x) 7 | . 1 1 1 1 . 1 . 7 2 3 2 2 2 1 Average Overweight (x) 1 | . . 1 1 1 . . . 3 1 1 2 2 . . Largest Inventory Capacity 25 | 8 20 20 20 20 20 20 20 25 25 25 25 25 25 25 Average Capacity 21 | 7 15 20 20 20 20 20 20 24 25 25 25 25 24 24 Most Carried 25 | 8 20 20 20 20 20 20 20 25 25 25 25 25 25 25 Average Carried 20 | 4 13 19 19 20 19 18 19 23 24 24 22 23 24 24 Final Capacity 25 | 8 20 20 20 20 20 20 20 25 25 25 25 25 25 5 Final Carried 25 | 8 20 20 20 20 20 16 20 25 25 24 21 25 25 5 Class Distribution -------------------- 47% | Scavenger-Mutant 31% | Mutant 15% | Tank 3% | Scavenger-Tank Dominant Class ---------------- Mutant | -10/Materials Scavenger-Mutant | -10/Mines Scavenger-Mutant | -10/Exiles Scavenger-Mutant | -9/Mines Scavenger-Mutant | -8/Materials Scavenger-Mutant | -8/Garrison Scavenger-Mutant | -8/Materials Scavenger-Mutant | -7/Factory Scavenger-Tank | -7/Waste Scavenger-Mutant | -7/Factory Tank | -7/Lower Caves Mutant | -7/Lower Caves Tank | -7/Zion Mutant | -7/Deep Caves Resources | -11 -10 -10 -10 -9 -8 -8 -8 -7 -7 -7 -7 -7 -7 -7 ----------- Run | Yrd Mat Min Exi Min Mat Gar Mat Fac Was Fac Low Low Zio Dee Matter Collected 5877 | 379 359 166 . 165 309 1129 420 861 220 936 206 229 195 303 Remotely . | . . . . . . . . . . . . . . . Salvage Created 7263 | 243 637 318 . . 463 1167 405 951 783 947 240 . . 1109 Parts 369 | 34 43 26 . . 30 68 11 39 7 73 10 . . 28 Haulers Intercepted 5 | . 2 . . . 1 . . . . 2 . . . . Recyclers Shooed 8 | 1 1 1 . . 1 . 2 1 . 1 . . . . Parts Field Recycled . | . . . . . . . . . . . . . . . Retrieved Matter . | . . . . . . . . . . . . . . . Parts Self-Destructed 9 | . . . . . . . . . . . 6 2 1 . Prevented 1 | . . . . . . . . . . . 1 . . . Kills | -11 -10 -10 -10 -9 -8 -8 -8 -7 -7 -7 -7 -7 -7 -7 ------- Run | Yrd Mat Min Exi Min Mat Gar Mat Fac Was Fac Low Low Zio Dee Combat Hostiles Destroyed 171 | . 15 10 . . 15 23 7 13 3 14 10 . . 61 Melee 13 | . . . . . . . . 3 . 10 . . . . Guns 64 | . 15 4 . . 12 23 7 2 . 1 . . . . Cannons 27 | . . 3 . . . . . 6 . . 2 . . 16 AOE 65 | . . 3 . . 3 . . 2 3 3 8 . . 43 Classes Destroyed 20 | 3 4 1 . . 2 3 . . 1 . 1 . . 5 Worker 6 | 1 . . . . . . . 2 . 3 . . . . Builder 5 | . . . . . 1 . . 1 . 3 . . . . Tunneler 11 | 9 . . . . . . . 1 . 1 . . . . Hauler 5 | . 2 . . . 1 . . . . 2 . . . . Recycler 10 | 1 . 1 . . . . 1 4 . 3 . . . . Watcher 3 | . 2 . . . . 1 . . . . . . . . Swarmer 34 | . 6 6 . . 7 4 . . . 6 5 . . . Grunt 34 | . 9 2 . . 3 10 4 4 . . 2 . . . Brawler 1 | . . . . . 1 . . . . . . . . . Duelist 1 | . . . . . . . . . . . 1 . . . Sentry 17 | . . 2 . . 4 2 2 2 . 4 1 . . . Specialist 2 | . . . . . . 2 . . . . . . . . Hunter 7 | . . . . . . 3 1 2 . . 1 . . . Programmer 11 | . . . . . . 2 . 5 . 4 . . . . Compactor 3 | . . . . . . . . . 3 . . . . . Z-Technician 2 | . . . . . . . . . . . . . . 2 Z-Light 8 | . . . . . . . . . . . . . . 8 Assembler 1 | . . . . . . . . . . . . . . 1 Assembled 48 | . . . . . . . . . . . . . . 48 Golem 4 | . . . . . . . . . . . . . . 4 Thug 1 | . . . . . . . . . 1 . . . . . Best Kill Streak 42 | 2 4 6 . . 8 6 2 9 1 7 3 . . 42 Combat Bots Only 41 | . 3 6 . . 8 6 2 5 1 6 3 . . 41 Max Kills in Single Turn 10 | 2 1 2 . . 4 2 1 3 2 3 2 . . 10 Gunslinging 1 | . . . . . 1 1 . . . . . . . . Exploded 10 | . . 2 . . 3 . . 1 1 3 2 . . 10 Melee 1 | . . . . . . . . 1 . 1 . . . . Uniques/NPCs Destroyed 1 | . . . . . . . . . . . . . . 1 Z-Imprinter (-7/Deep Caves) Combat | -11 -10 -10 -10 -9 -8 -8 -8 -7 -7 -7 -7 -7 -7 -7 -------- Run | Yrd Mat Min Exi Min Mat Gar Mat Fac Was Fac Low Low Zio Dee Hostile Shots Fired 1031 | . 64 65 . . 71 142 52 122 . 189 52 1 . 273 Missed 300 | . 13 12 . . 19 41 13 42 . 62 20 . . 78 Hits 731 | . 51 53 . . 52 101 39 80 . 127 32 1 . 195 Melee 13 | . . . . . . . . . . . 3 1 . 9 Projectile 718 | . 51 53 . . 52 101 39 80 . 127 29 . . 186 Critical Strikes 27 | . . . . . 2 8 3 3 . 4 2 . . 5 Actively Blocked 1 | . . . . . . . . . . . . . . 1 Part Disruptions 4 | . . . . . . 1 1 . . . . . . 2 Damage Taken 10931 | . 534 549 . . 578 1465 639 1070 24 1257 639 29 . 4147 Core 1266 | . 76 130 . . 84 174 94 148 . 97 . . . 463 Absorbed by Shields 37 | . . . . . . 37 . . . . . . . . Reduced by Siege Mode 67 | . . . . . . . . . . . . . . 67 Redirected to Shielding 310 | . . . . . . . . . . . . . . 310 Ignored by Resistances 546 | . . . . . 78 49 . . . 83 . . . 336 Regen/Repaired (Parts) 1108 | . . . . . . . . . . 122 . . 986 . Core Remaining (%) 51 | 100 . . . 17 . . 36 . . . . . . . Volleys Fired 430 | 28 62 22 . . 28 123 41 45 12 11 20 3 . 35 Largest 3 | 2 2 2 . . 2 2 2 3 3 2 1 2 . 2 Hottest 141 | 40 80 83 . . 100 100 100 100 141 56 63 91 . 132 Shots Fired 793 | 56 124 44 . . 55 209 78 65 32 19 21 8 . 82 Gun 555 | 56 122 19 . . 52 177 74 31 . 17 2 5 . . Cannon 138 | . 2 19 . . . . . 28 7 . 10 3 . 69 Launcher 61 | . . 6 . . 2 . . 4 25 2 9 . . 13 Special 39 | . . . . . 1 32 4 2 . . . . . . Kinetic 603 | 56 122 19 . . 52 177 74 49 . 16 2 5 . 31 Thermal 61 | . 2 19 . . 1 32 4 2 . 1 . . . . Explosive 61 | . . 6 . . 2 . . 4 25 2 9 . . 13 Electromagnetic 68 | . . . . . . . . 10 7 . 10 3 . 38 Robot Hit Streak 19 | 6 17 19 . . 14 15 9 10 8 4 2 2 . 11 Robot Miss Streak 7 | 3 5 2 . . 4 3 4 2 2 7 4 2 . 2 Penetration Max 1 | . . . . . . . . 1 . . . . . . Secondary Targets 11 | . 2 . . . 4 4 1 . . . . . . . Max Gunslinging Chain 1 | . 1 . . . 1 1 1 . . . . . . . Autonomous 31 | . . . . . . . . . . . . . . 31 Shots Hit Robots 549 | 34 84 29 1 . 39 112 59 58 18 49 4 3 2 57 Core Hits 428 | 15 36 15 . . 32 48 17 26 12 29 17 . . 181 Critical Kills 1 | . . . . . . 1 . . . . . . . . Critical Parts Destroyed 2 | . . 1 . . . 1 . . . . . . . . Critical Strikes 14 | . . 1 . . . 2 . 3 . 5 . . . 3 Destroy 3 | . . 1 . . . 2 . . . . . . . . Blast 4 | . . . . . . . . 1 . . . . . 3 Corrupt 1 | . . . . . . . . 1 . . . . . . Sever 6 | . . . . . . . . 1 . 5 . . . . Melee Attacks 110 | . . . 1 . . . . 21 . 74 1 . 3 10 Impact 5 | . . . . . . . . 4 . 1 . . . . Slashing 99 | . . . . . . . . 14 . 73 1 . 1 10 Piercing . | . . . . . . . . . . . . . . . Sneak Attacks 23 | . . . 1 . . . . 6 . 14 . . 2 . Combat Hostiles . | . . . . . . . . . . . . . . . Follow-up Attacks . | . . . . . . . . . . . . . . . Damage Inflicted 22134 | 361 958 675 . 5 960 1883 1035 2225 2110 2504 867 61 . 8490 Guns 5829 | 361 923 155 . . 789 1883 1035 512 . 114 16 41 . . Cannons 3538 | . 35 297 . . . . . 547 14 . 98 20 . 2527 Explosions 9874 | . . 218 . . 171 . . 533 2096 214 753 . . 5889 Melee 2877 | . . . . . . . . 633 . 2176 . . . 68 Ramming 16 | . . 5 . 5 . . . . . . . . . 6 Kinetic 8056 | 361 923 155 . . 789 1883 1035 842 . 96 16 41 . 1915 Thermal 556 | . 35 297 . . . . . . . 18 61 . . 145 Explosive 9668 | . . 218 . . 171 . . 533 2096 214 692 . . 5744 Electromagnetic 961 | . . . . . . . . 217 14 . 98 20 . 612 Impact 289 | . . . . . . . . 289 . . . . . . Slashing 2588 | . . . . . . . . 344 . 2176 . . . 68 Piercing . | . . . . . . . . . . . . . . . Highest Corruption 30 | . . . . . . 4 4 8 24 30 24 22 22 . Average Corruption 15 | . . . . . . 2 4 5 15 25 22 22 22 . Corruption Purged 10 | . . . . . . . . . . 7 3 . . . Corruption Blocked . | . . . . . . . . . . . . . . . Effects 190 | . . . . . . 5 13 17 14 93 28 17 3 . Message Errors 38 | . . . . . . 2 1 1 2 20 5 6 1 . Matter Fused 44 | . . . . . . 2 3 4 1 25 5 3 1 . Heat Flow Errors 24 | . . . . . . . 2 3 2 12 4 1 . . Energy Discharges 31 | . . . . . . . 4 4 1 13 5 3 1 . Parts Rejected 3 | . . . . . . . . . 1 . 2 . . . Parts Fused 3 | . . . . . . . . . 1 1 1 . . . Data Loss (minor) 16 | . . . . . . . 1 1 1 9 2 2 . . Data Loss (major) 12 | . . . . . . 1 1 2 1 6 1 . . . Misfires 13 | . . . . . . . . 2 1 6 2 2 . . Alerts 1 | . . . . . . . 1 . . . . . . . Misdirections 3 | . . . . . . . . . 2 1 . . . . Weapon Failures 2 | . . . . . . . . . 1 . 1 . . . Overload Shots . | . . . . . . . . . . . . . . . Overflow Damage 1107 | . . . . . . . . 228 . 424 7 . . 448 Projectiles 194 | . . . . . . . . 27 . . 7 . . 160 Explosions 284 | . . . . . . . . 26 . 29 . . . 229 Melee 629 | . . . . . . . . 175 . 395 . . . 59 Knockbacks 8 | . . . . . . . . 1 . . . . . 7 Impact 1 | . . . . . . . . . . . . . . 1 Kinetic 6 | . . . . . . . . 1 . . . . . 5 Secondary 1 | . . . . . . . . . . . . . . 1 Self-Inflicted Damage 434 | . . . . . . 63 34 55 25 . 174 . . 83 Shots 12 | . . . . . . 1 2 2 1 . 4 . . 2 Rammed 5 | . . 2 . 1 . . . . . . . . . 2 Targets Rammed 5 | . . 2 . 1 . . . . . . . . . 2 Kicked . | . . . . . . . . . . . . . . . Crushed . | . . . . . . . . . . . . . . . Highest Temperature 305 | . 42 270 . . 59 252 249 261 287 262 305 171 . 290 Average Temperature 67 | . 13 79 . . 26 49 44 46 84 104 103 79 . 103 Received Heat Transfer 2865 | . 159 141 . . 225 480 351 222 . 186 141 . . 960 Effects 3 | . . . . . . 1 . . . . 2 . . . Energy Bleed 1 | . . . . . . . . . . . 1 . . . Interference 2 | . . . . . . 1 . . . . 1 . . . Siege Activations 2 | . . . . . . . . . . . . . . 2 Total Turns 19 | . . . . . . . . . . . . . . 19 Longest Duration 11 | . . . . . . . . . . . . . . 11 Martial Activations . | . . . . . . . . . . . . . . . Shielding Activations . | . . . . . . . . . . . . . . . Robots Disrupted . | . . . . . . . . . . . . . . . Combat Hostiles . | . . . . . . . . . . . . . . . Robots Corrupted 3 | . . . . . . . . 1 . . . . . 2 Combat Hostiles 2 | . . . . . . . . . . . . . . 2 Parts Fried 6 | . . . . . . . . 4 . . . . . 2 Impact Corruptions 7 | . . . . . . . . 6 . . . . . 1 Robots Melted . | . . . . . . . . . . . . . . . Combat Hostiles . | . . . . . . . . . . . . . . . Parts Melted 1 | . . 1 . . . . . . . . . . . . Heat Transferred 840 | . 74 629 . . . . . . . 37 . . . 100 Parts Sabotaged . | . . . . . . . . . . . . . . . Parts Stolen . | . . . . . . . . . . . . . . . Parts Stripped . | . . . . . . . . . . . . . . . Power Chain Reactions 2 | . . . . . . . . . . . 1 . . 1 Alert | -11 -10 -10 -10 -9 -8 -8 -8 -7 -7 -7 -7 -7 -7 -7 ------- Run | Yrd Mat Min Exi Min Mat Gar Mat Fac Was Fac Low Low Zio Dee Maximum Alert Level 3 | . . . . . 1 3 2 1 . 1 . . . . Low Security (%) 77 | 100 100 100 . 100 45 13 . 89 100 93 . . . . Level 1 7 | . . . . . 54 18 . 10 . 6 . . . . Level 2 8 | . . . . . . 28 100 . . . . . . . Level 3 5 | . . . . . . 39 . . . . . . . . Level 4 . | . . . . . . . . . . . . . . . Level 5 . | . . . . . . . . . . . . . . . High Security . | . . . . . . . . . . . . . . . Max Security . | . . . . . . . . . . . . . . . Peak Influence 1055 | 10 106 147 . . 300 1055 584 245 59 229 . . . . Initial 514 | . 1 . . . . 137 514 245 49 . . . . . Average 149 | 1 24 19 . . 163 610 535 113 28 39 . . . . Influence Increases 3924 | 55 439 267 . . 462 1018 289 487 44 633 230 . . . Destroy 0b10 Robot/C 2140 | . 300 200 . . 300 460 140 260 . 280 200 . . . Destroy 0b10 Robot/NC 210 | 55 20 5 . . 10 15 5 40 . 60 . . . . Destroy Leader 444 | . 68 30 . . 62 10 40 100 . 104 30 . . . Allied During Kill 1 | . . . . . . 1 . . . . . . . . Successful Hack 203 | . 21 . . . 3 18 9 65 . 87 . . . . Select Force Hacks 30 | . 30 . . . . . . . . . . . . . Disable Machine 105 | . . . . . 15 15 45 . . 30 . . . . Anti-Garrison Action 350 | . . . . . . 350 . . . . . . . . Destroy Structure 216 | . . 17 . . 12 89 5 22 44 27 . . . . Partial Spotted 15 | . . . . . 15 . . . . . . . . . Lose Combat Pursuer 210 | . . 15 . . 45 60 45 . . 45 . . . . Influence Decreases 3924 | 53 441 267 . . 251 174 805 886 184 421 367 75 . . Entered New Map 1095 | . 1 . . . . 74 541 294 91 . 79 15 . . Time Decay 2604 | 53 440 267 . . 226 . 254 542 93 391 278 60 . . Lost Part 130 | . . . . . 10 60 10 10 . 30 10 . . . Lost Ally 55 | . . . . . 15 40 . . . . . . . . Purge Threat 40 | . . . . . . . . 40 . . . . . . Squads Dispatched 19 | . 3 . . . 3 . 4 3 . 6 . . . . Investigation 3 | . 2 . . . . . 1 . . . . . . . Extermination 7 | . . . . . . . . 3 . 4 . . . . Reinforcement 5 | . 1 . . . . . 2 . . 2 . . . . Assault 1 | . . . . . . . 1 . . . . . . . Garrison 3 | . . . . . 3 . . . . . . . . . Intercept . | . . . . . . . . . . . . . . . Searches Triggered . | . . . . . . . . . . . . . . . Construction Impeded . | . . . . . . . . . . . . . . . Haulers Reinforced . | . . . . . . . . . . . . . . . Active Scanning Responses . | . . . . . . . . . . . . . . . Cargo Convoy Interrupts . | . . . . . . . . . . . . . . . Stealth | -11 -10 -10 -10 -9 -8 -8 -8 -7 -7 -7 -7 -7 -7 -7 --------- Run | Yrd Mat Min Exi Min Mat Gar Mat Fac Was Fac Low Low Zio Dee Distress Signals 13 | . 3 . . . 2 1 3 2 . 2 . . . . Communications Jammed . | . . . . . . . . . . . . . . . Distress Signals . | . . . . . . . . . . . . . . . Times Spotted 219 | . 22 11 . 2 17 28 14 15 6 21 10 1 . 72 Peak Tracking Total 29 | . 4 6 . 1 7 5 5 4 3 5 3 1 . 29 Tactical Retreats 13 | . . 1 . . 3 3 1 . 1 2 . 1 . 1 Traps | -11 -10 -10 -10 -9 -8 -8 -8 -7 -7 -7 -7 -7 -7 -7 ------- Run | Yrd Mat Min Exi Min Mat Gar Mat Fac Was Fac Low Low Zio Dee Traps Triggered 11 | . 3 . . . . 2 1 1 . 4 . . . . Indirectly . | . . . . . . . . . . . . . . . Trap Hack Attempts 30 | . . . . . . . . 30 . . . . . . Triggered . | . . . . . . . . . . . . . . . Disarmed . | . . . . . . . . . . . . . . . Reprogrammed 6 | . . . . . . . . 6 . . . . . . Reused 6 | . . . . . . . . . . . . . . 6 Traps Extracted 6 | . . . . . . . . 6 . . . . . . Installed 6 | . . . . . . . . . . . . . . 6 Triggered . | . . . . . . . . . . . . . . . Most Traps Carried 6 | . . . . . . . . 6 6 6 6 6 6 6 Machines | -11 -10 -10 -10 -9 -8 -8 -8 -7 -7 -7 -7 -7 -7 -7 ---------- Run | Yrd Mat Min Exi Min Mat Gar Mat Fac Was Fac Low Low Zio Dee Machines Disabled 16 | . . . . . 1 6 3 . . 2 . . 3 1 Max in Single Turn 2 | . . . . . . 2 2 . . 1 . . 1 1 Garrison Access 1 | . . . . . . . . . . 1 . . . . Garrison Relay 3 | . . . . . . 3 . . . . . . . . Phase Generator 1 | . . . . . . 1 . . . . . . . . Machines Repaired . | . . . . . . . . . . . . . . . Machines Dismantled 3 | . . . . . . . . . . . . . 3 . Machines Sabotaged . | . . . . . . . . . . . . . . . Overloaded Fab Kills . | . . . . . . . . . . . . . . . Hacking | -11 -10 -10 -10 -9 -8 -8 -8 -7 -7 -7 -7 -7 -7 -7 --------- Run | Yrd Mat Min Exi Min Mat Gar Mat Fac Was Fac Low Low Zio Dee Machines Accessed 41 | . 10 . 2 . 3 3 2 7 . 14 . . . . Terminals 27 | . 8 . . . 1 3 2 5 . 8 . . . . Fabricators 1 | . . . . . . . . . . 1 . . . . Repair Stations 1 | . . . . . . . . . . 1 . . . . Recycling Units 3 | . 2 . . . . . . . . 1 . . . . Scanalyzers 3 | . . . . . 1 . . 1 . 1 . . . . Garrison Access 4 | . . . . . 1 . . 1 . 2 . . . . Total Hacks 100 | . 24 . 2 . 8 6 6 22 . 32 . . . . Successful 50 | . 13 . 2 . 5 3 3 11 . 13 . . . . Failed 50 | . 11 . . . 3 3 3 11 . 19 . . . . Catastrophic 12 | . 1 . . . 1 . 1 2 . 7 . . . . Database Lockouts . | . . . . . . . . . . . . . . . Manual 51 | . 19 . 1 . 3 5 3 9 . 11 . . . . Terminals 66 | . 20 . . . 3 6 6 16 . 15 . . . . Fabricators 2 | . . . . . . . . . . 2 . . . . Repair Stations 6 | . . . . . . . . . . 6 . . . . Recycling Units 5 | . 4 . . . . . . . . 1 . . . . Scanalyzers 12 | . . . . . 4 . . 3 . 5 . . . . Garrison Access 7 | . . . . . 1 . . 3 . 3 . . . . Terminal Hacks 15 | . 3 . 2 . . 2 1 5 . 2 . . . . Record 1 | . . . 1 . . . . . . . . . . . Robot Schematic 1 | . 1 . . . . . . . . . . . . . Robot Analysis 2 | . 1 . . . . . . 1 . . . . . . Prototype ID Bank 1 | . 1 . . . . . . . . . . . . . Open Door 1 | . . . . . . 1 . . . . . . . . Branch Access Points 1 | . . . . . . . . 1 . . . . . . Terminal Index 2 | . . . . . . . . 1 . 1 . . . . Unreport Threat 1 | . . . . . . . . 1 . . . . . . Locate Traps 2 | . . . . . . . . 1 . 1 . . . . Registered Components 1 | . . . . . . . 1 . . . . . . . Garrison Registry 1 | . . . . . . 1 . . . . . . . . Proto ID Catalog 1 | . . . 1 . . . . . . . . . . . Fabricator Hacks 1 | . . . . . . . . . . 1 . . . . Build 1 | . . . . . . . . . . 1 . . . . Repair Station Hacks 4 | . . . . . . . . . . 4 . . . . Scan Component 2 | . . . . . . . . . . 2 . . . . Repair 2 | . . . . . . . . . . 2 . . . . Recycling Unit Hacks 2 | . 1 . . . . . . . . 1 . . . . Retrieve Components 2 | . 1 . . . . . . . . 1 . . . . Scanalyzer 8 | . . . . . 3 . . 3 . 2 . . . . Insert Component 4 | . . . . . 1 . . 2 . 1 . . . . Analyze 4 | . . . . . 2 . . 1 . 1 . . . . Garrison Access Hacks 2 | . . . . . 1 . . . . 1 . . . . Unlock Access 1 | . . . . . 1 . . . . . . . . . Seal Access 1 | . . . . . . . . . . 1 . . . . Unauthorized Hacks 18 | . 9 . . . 1 1 2 3 . 2 . . . . Terminals 17 | . 8 . . . 1 1 2 3 . 2 . . . . Track 1 | . . . . . 1 . . . . . . . . . Assimilate 1 | . . . . . . . . 1 . . . . . . Botnet 7 | . 1 . . . . 1 1 2 . 2 . . . . Operators 1 | . 1 . . . . . . . . . . . . . Skim 7 | . 6 . . . . . 1 . . . . . . . Fabricators . | . . . . . . . . . . . . . . . Repair Stations . | . . . . . . . . . . . . . . . Recycling Units 1 | . 1 . . . . . . . . . . . . . Tunnel 1 | . 1 . . . . . . . . . . . . . Scanalyzers . | . . . . . . . . . . . . . . . Garrison Access . | . . . . . . . . . . . . . . . Data Cores Recovered . | . . . . . . . . . . . . . . . Used . | . . . . . . . . . . . . . . . Hacking Detections 35 | . 10 . . . 2 2 2 7 . 12 . . . . Full Trace Events 1 | . . . . . . 1 . . . . . . . . Feedback Events . | . . . . . . . . . . . . . . . Feedback Blocked . | . . . . . . . . . . . . . . . Robot Schematics Acquired 3 | . 1 . . . . . . . . . . . 2 . Robots Built . | . . . . . . . . . . . . . . . Authchips . | . . . . . . . . . . . . . . . Time . | . . . . . . . . . . . . . . . Total Robot Build Rating . | . . . . . . . . . . . . . . . Part Schematics Acquired 18 | . . . . . 1 . . 1 . . . . 16 . Parts Built 1 | . . . . . . . . . . 1 . . . . Authchips . | . . . . . . . . . . . . . . . Time 35 | . . . . . . . . . . 35 . . . . Total Part Build Rating 6 | . . . . . . . . . . 6 . . . . Parts Repaired 2 | . . . . . . . . . . 2 . . . . Time 114 | . . . . . . . . . . 114 . . . . Parts Recycled . | . . . . . . . . . . . . . . . Recycled Matter . | . . . . . . . . . . . . . . . Retrieved Matter . | . . . . . . . . . . . . . . . Retrieved Components 9 | . 9 . . . . . . . . . . . . . Parts Scanalyzed 3 | . . . . . 1 . . 1 . 1 . . . . Part Schematics Acquired 2 | . . . . . 1 . . 1 . . . . . . Parts Damaged . | . . . . . . . . . . . . . . . Bothacking | -11 -10 -10 -10 -9 -8 -8 -8 -7 -7 -7 -7 -7 -7 -7 ------------ Run | Yrd Mat Min Exi Min Mat Gar Mat Fac Was Fac Low Low Zio Dee Used RIF Installer . | . . . . . . . . . . . . . . . Robots Hacked 5 | . . . . . . . . 3 . . . . 2 . Non-combat 3 | . . . . . . . . 3 . . . . . . Combat 2 | . . . . . . . . . . . . . 2 . Robot Hacks Applied 5 | . . . . . . . . 3 . . . . 2 . parse_system 3 | . . . . . . . . 1 . . . . 2 . find_chute 2 | . . . . . . . . 2 . . . . . . Relay Couplers Released 20 | . . . . . . 16 . 4 . . . . . . Machine Destruction 13 | . . . . . . 13 . . . . . . . . Programmers 7 | . . . . . . 3 . 4 . . . . . . Fabnet Peak Effective % . | . . . . . . . . . . . . . . . Robots Rewired 2 | . . . 2 . . . . . . . . . . . Allies Hacked . | . . . . . . . . . . . . . . . Hacks Repelled . | . . . . . . . . . . . . . . . Allies | -11 -10 -10 -10 -9 -8 -8 -8 -7 -7 -7 -7 -7 -7 -7 -------- Run | Yrd Mat Min Exi Min Mat Gar Mat Fac Was Fac Low Low Zio Dee Total Allies 5 | . . . 2 . . 2 . . 1 . . . . . Largest Group 2 | . . . 2 2 2 2 . . 1 . . . . . Highest-Rated Group 51 | . . . 29 29 29 51 . . 31 . . . . . Highest-Rated Ally 31 | . . . 21 21 21 31 . . 31 . . . . . Initial Warlord ECA Mod 57 | . . . . . . . 8 7 7 7 7 7 7 7 Total Orders . | . . . . . . . . . . . . . . . Ally Attacks 44 | . . . . 5 7 4 . . 28 . . . . . Total Damage 712 | . . . . 58 82 95 . . 477 . . . . . Kills 2 | . . . . 2 . . . . . . . . . . Allies Corrupted . | . . . . . . . . . . . . . . . Allies Melted . | . . . . . . . . . . . . . . . Intel | -11 -10 -10 -10 -9 -8 -8 -8 -7 -7 -7 -7 -7 -7 -7 ------- Run | Yrd Mat Min Exi Min Mat Gar Mat Fac Was Fac Low Low Zio Dee Active Infowar (turns) 14557 | 388 1935 1445 1178 1324 623 1392 500 1703 229 1924 584 375 957 . Sensors 1144 | . . . . 1073 . . . . . . 71 . . . Terrain 3346 | 385 54 . . . 235 . 230 998 71 1373 . . . . Structural 1354 | . . . . . . . . 1354 . . . . . . Seismic 12953 | 3 1881 1445 1178 251 623 1392 500 1688 229 1918 513 375 957 . ECM 2 | . . . . . . . . . . . . . 2 . Robot Analysis Total 2 | . 1 . . . . . . 1 . . . . . . Derelict Logs Recovered 5 | . . 2 . 1 . . . . . . 1 . 1 . Drone Launches . | . . . . . . . . . . . . . . . Drone Recoveries . | . . . . . . . . . . . . . . . Exploration | -11 -10 -10 -10 -9 -8 -8 -8 -7 -7 -7 -7 -7 -7 -7 ------------- Run | Yrd Mat Min Exi Min Mat Gar Mat Fac Was Fac Low Low Zio Dee Turns Passed 19061 | 505 1935 1519 1180 1340 625 1751 545 1703 229 2000 615 375 2561 2178 Spaces Moved 8993 | 255 704 571 479 513 299 777 219 791 138 1332 415 225 1237 1038 Core 10 | 4 . . . . . . . . . . . . . 6 Treads 6044 | 251 704 571 479 513 299 777 219 107 . . . . 1092 1032 Legs . | . . . . . . . . . . . . . . . Wheels 2939 | . . . . . . . . 684 138 1332 415 225 145 . Hover . | . . . . . . . . . . . . . . . Flight . | . . . . . . . . . . . . . . . Fastest Speed 50 | 50 160 240 240 240 160 160 160 115 115 108 130 130 130 50 Average Speed 177 | 158 207 240 240 240 160 160 163 168 125 119 130 130 195 186 Slowest Speed 250 | 160 240 240 240 240 160 240 167 250 130 145 130 130 240 240 Overloaded Moves . | . . . . . . . . . . . . . . . Propulsion Burnouts . | . . . . . . . . . . . . . . . Robots Hopped . | . . . . . . . . . . . . . . . Potential Cave-ins . | . . . . . . . . . . . . . . . Cave-ins Triggered . | . . . . . . . . . . . . . . . Exploration Rate (%) 60 | 14 98 97 88 73 31 78 23 17 80 46 66 40 87 76 Regions Visited 14 Branch Regions 7 Pre-discovered Areas 5 | . 1 1 1 . . . . . . . 1 . 1 . Known Exits Taken 3 | . . . . . 1 . 1 . . 1 . . . . Unknown Exits Taken 8 | 1 1 1 1 1 . . . . . . 1 1 1 . Scrap Searched 7 | . . . . 1 . . . . . . 1 3 2 . Spaces Dug 82 | . . . . . 11 . 4 16 . 19 23 . . 9 Terrain Destroyed 362 | . . 29 . . 11 72 4 26 85 34 80 . . 21 Melee 31 | . . . . . . . . 2 . 19 1 . . 9 Projectile 16 | . . . . . 1 . 4 3 . . . . . 8 AOE 315 | . . 29 . . 10 72 . 21 85 15 79 . . 4 Terrain Rammed . | . . . . . . . . . . . . . . . Walls Destroyed . | . . . . . . . . . . . . . . . Machines Disabled . | . . . . . . . . . . . . . . . Actions | -11 -10 -10 -10 -9 -8 -8 -8 -7 -7 -7 -7 -7 -7 -7 --------- Run | Yrd Mat Min Exi Min Mat Gar Mat Fac Was Fac Low Low Zio Dee Total 11138 | 305 1067 672 511 620 393 1069 334 1070 169 1605 465 303 1332 1223 Wait 905 | 2 269 54 . 104 19 126 37 106 5 72 10 62 2 37 Move 8980 | 254 703 570 478 512 299 776 218 791 137 1330 414 224 1236 1038 Hop . | . . . . . . . . . . . . . . . Pick Up 124 | 11 14 3 2 . 5 3 5 19 4 14 1 3 26 14 Fast Attach 83 | 6 . . 1 . 6 3 5 8 2 20 2 4 9 17 Attach 58 | 1 . 1 . . 6 5 1 4 . 8 6 . 6 20 Detach 35 | . . . . . 3 . . 4 . 5 4 2 8 9 Swap 153 | 1 10 15 3 3 15 21 15 22 2 28 7 1 3 7 Drop 160 | 2 9 5 5 . 12 9 12 20 7 35 . 4 12 28 Fire 430 | 28 62 22 . . 28 123 41 45 12 11 20 3 . 35 Melee 110 | . . . 1 . . . . 21 . 74 1 . 3 10 Ram . | . . . . . . . . . . . . . . . Kick . | . . . . . . . . . . . . . . . Crush 5 | . . 2 . 1 . . . . . . . . . 2 Escape Stasis 9 | . . . . . . 1 . . . 8 . . . . Rewire 23 | . . . 21 . . 2 . . . . . . . . Trap 36 | . . . . . . . . 30 . . . . . 6 Miscellaneous 27 | . . . . . . . . . . . . . 27 . Route ------- -11/Scrapyard -10/Materials (discovered 6 exits: [*Mat x3] / [*Min x2] / [*Sub]) -10/Mines (discovered 4 exits: [*Mat x2] / *Exi / [*Sub]) -10/Exiles -9/Mines -8/Materials (discovered 2 exits: Fac / Gar) -8/Garrison (discovered 3 exits: *Mat x3) -8/Materials -7/Factory (discovered 2 exits: *Low x2) -7/Waste -7/Factory (discovered 3 exits: *Fac x2 / *Low) -7/Lower Caves -7/Lower Caves -7/Zion (discovered 2 exits: [*Dee] / [*Pro]) -7/Deep Caves (discovered 1 exit: [*Pro]) History --------- Turn | Location | Event 18 | -11/Scrapyard | Discovered new exit (range 15) 506 | -11/Scrapyard | Entered Materials 524 | -10/Materials | Build established: Mutant 877 | -10/Materials | Discovered new exit (range 16) 1105 | -10/Materials | Discovered new exit (range 6) 1201 | -10/Materials | Discovered new exit (range 15) 1275 | -10/Materials | Discovered new exit (range 6) 1606 | -10/Materials | Derelicts attacked the area 1851 | -10/Materials | Discovered new exit (range 10) 1938 | -10/Materials | Discovered new exit (range 3) 2441 | -10/Materials | Entered Mines 2496 | -10/Mines | Core integrity fell below 50% 2799 | -10/Mines | Build established: Scavenger-Mutant 3117 | -10/Mines | Core integrity fell below 20% 3186 | -10/Mines | Discovered new exit (range 12) 3383 | -10/Mines | Found a damaged Exp. Sensor Array with a note attached 3391 | -10/Mines | Found Prototype Device 3411 | -10/Mines | Learned location of Storage (-9) 3502 | -10/Mines | Discovered new exit (range 5) 3798 | -10/Mines | Discovered new exit (range 15) 3949 | -10/Mines | Deemed a non-threat by the Exiles lab entrance 3949 | -10/Mines | Discovered new exit (range 5) 3960 | -10/Mines | Entered Exiles 3960 | -10/Exiles | Found Exiles lab destroyed 4173 | -10/Exiles | Learned location of Zion (-7) 4296 | -10/Exiles | Opened EX-Vault 4312 | -10/Exiles | Found AWS/Autocannon 5114 | -10/Exiles | Discovered new exit (range 12) 5140 | -10/Exiles | Entered Mines 5140 | -9/Mines | Accompanied by 2 allies 5154 | -9/Mines | Learned 4 Materials zone layouts 5385 | -9/Mines | Assembled infested the area 5390 | -9/Mines | Assisted by a Guerilla fighting off Assembled 5391 | -9/Mines | Identified Exp. Sensor Array 5533 | -9/Mines | Found a hidden stash of uninstalled traps 6442 | -9/Mines | Discovered new exit (range 14) 6480 | -9/Mines | Entered Materials 6480 | -8/Materials | Accompanied by 2 allies 6480 | -8/Materials | Evolved 4 slots: Propulsion x2, Utility x2 6481 | -8/Materials | Identified exit to Factory 6615 | -8/Materials | Garrison activated, responded to threat 6707 | -8/Materials | Destroyed 8 combat bots 7104 | -8/Materials | Identified exit to Garrison 7105 | -8/Materials | Entered Garrison 7295 | -8/Garrison | Triggered checkpoint 7343 | -8/Garrison | Garrison Relay disabled 7413 | -8/Garrison | Triggered checkpoint 7566 | -8/Garrison | Rescued a captive Derelict 7567 | -8/Garrison | Rescued a captive Derelict 7639 | -8/Garrison | Triggered checkpoint 7656 | -8/Garrison | Triggered checkpoint 8112 | -8/Garrison | Discovered new exit (range 10) 8188 | -8/Garrison | Lost 3 parts (2n1w) 8228 | -8/Garrison | Phase Generator disabled 8273 | -8/Garrison | Triggered checkpoint 8284 | -8/Garrison | Garrison Relay disabled 8441 | -8/Garrison | Discovered new exit (range 36) 8441 | -8/Garrison | Discovered new exit (range 26) 8441 | -8/Garrison | Discovered new exit (range 38) 8745 | -8/Garrison | Garrison Relay disabled 8856 | -8/Garrison | Entered Materials 9067 | -8/Materials | Core integrity fell below 50% 9256 | -8/Materials | First assault squad dispatched 9339 | -8/Materials | Discovered exit to Factory (range 3) 9401 | -8/Materials | Entered Factory 9401 | -7/Factory | Evolved 2 slots: Utility x1, Weapon x1 10245 | -7/Factory | Identified exit to Lower Caves 11104 | -7/Factory | Sucked down chute 11104 | -7/Factory | Entered Waste 11105 | -7/Waste | Met a frightened Derelict 11119 | -7/Waste | EMP discharged 11119 | -7/Waste | System corruption reached 10% 11120 | -7/Waste | Spotted C-40 Crusher 11138 | -7/Waste | Destroyed C-40 Crusher 11155 | -7/Waste | Spotted C-40 Crusher 11167 | -7/Waste | Destroyed C-40 Crusher 11176 | -7/Waste | Spotted C-40 Crusher 11186 | -7/Waste | Spotted C-40 Crusher 11200 | -7/Waste | Destroyed C-40 Crusher 11210 | -7/Waste | Spotted C-40 Crusher 11215 | -7/Waste | Spotted C-40 Crusher 11219 | -7/Waste | EMP discharged 11319 | -7/Waste | EMP discharged 11321 | -7/Waste | Discovered new exit (range 10) 11333 | -7/Waste | Entered Factory 11404 | -7/Factory | Repaired Imp. EM Pulse Cannon 11478 | -7/Factory | Repaired Corrupted Weapon Mount? 12309 | -7/Factory | Discovered new exit (range 8) 12319 | -7/Factory | Identified exit to Factory 12485 | -7/Factory | Fabricated Adv. System Shield? 13166 | -7/Factory | System corruption reached 30% 13299 | -7/Factory | Build established: Mutant 13310 | -7/Factory | Discovered exit to Lower Caves (range 12) 13330 | -7/Factory | Discovered exit to Factory (range 9) 13333 | -7/Factory | Entered Lower Caves 13340 | -7/Lower Caves | Met a Warlord Commander 13341 | -7/Lower Caves | Learned location of Warlord (-4) 13342 | -7/Lower Caves | Warlord Commander delivered Encrypted Comm Array 13348 | -7/Lower Caves | Found Encrypted Comm Array 13528 | -7/Lower Caves | Attracted the attention of an 0b10 checkpoint 13786 | -7/Lower Caves | Encountered a Warlord checkpoint 13851 | -7/Lower Caves | Discovered new exit (range 9) 13893 | -7/Lower Caves | Build established: Tank 13948 | -7/Lower Caves | Entered another Lower Caves area 14099 | -7/Lower Caves | Found DCF Scrap (10 items) 14215 | -7/Lower Caves | Encountered a Warlord checkpoint 14262 | -7/Lower Caves | Discovered new exit (range 13) 14323 | -7/Lower Caves | Entered Zion 14374 | -7/Zion | System corruption cleaned by Quarantine Array 14402 | -7/Zion | Build established: Mutant 14454 | -7/Zion | Acquired unknown access codes intercepted by a Zionite 14519 | -7/Zion | Found CR-A16's Pointy Stick 14560 | -7/Zion | Discovered new exit (range 16) 14737 | -7/Zion | Learned Factory stockpile data 14867 | -7/Zion | Given the Hacking Drone Bay 14867 | -7/Zion | Found Prototype Device 14899 | -7/Zion | Learned location of Data Miner (-6) 15095 | -7/Zion | Met Imprinter 15272 | -7/Zion | Visited the Megawrench Repair Shop 15304 | -7/Zion | Megawrench repaired 10 parts 15578 | -7/Zion | Build established: Tank 15590 | -7/Zion | Received a hallucinogenic algorithm 16850 | -7/Zion | Discovered new exit (range 5) 16879 | -7/Zion | Saw the warning signs outside the Deep Caves entrance 16884 | -7/Zion | Entered Deep Caves 17312 | -7/Deep Caves | Attacked by Z-Imprinter 17316 | -7/Deep Caves | Destroyed Z-Imprinter 17598 | -7/Deep Caves | Found Prototype Protection 17598 | -7/Deep Caves | Identified Zio. Heavy Carapace 17668 | -7/Deep Caves | Z-Facility disabled 17757 | -7/Deep Caves | Found Prototype Protection 17757 | -7/Deep Caves | Identified Zio. Weapon Casing 17812 | -7/Deep Caves | Found Zio. Heavy Carapace 17837 | -7/Deep Caves | Found Zio. Weapon Casing 17896 | -7/Deep Caves | Found Zio. Weapon Casing 17996 | -7/Deep Caves | Found Surveybot 24 Chip 18000 | -7/Deep Caves | Found Surveybot 24 Scanner 18115 | -7/Deep Caves | Build established: Mutant 18154 | -7/Deep Caves | Discovered new exit (range 6) 18880 | -7/Deep Caves | Spotted AG-25919 18897 | -7/Deep Caves | Destroyed AG-25919 18916 | -7/Deep Caves | Exposed GOLEM chamber 18917 | -7/Deep Caves | Triggered Deep Caves wall 18941 | -7/Deep Caves | Spotted AS-28566 18953 | -7/Deep Caves | Destroyed AS-28566 18985 | -7/Deep Caves | Spotted AS-52045 18987 | -7/Deep Caves | Lost 3 parts (3u) 18997 | -7/Deep Caves | Destroyed 41 combat bots 19002 | -7/Deep Caves | Found GOLEM Unit 19018 | -7/Deep Caves | Core integrity fell below 50% 19024 | -7/Deep Caves | Spotted AG-72095 19052 | -7/Deep Caves | Core integrity fell below 20% 19062 | -7/Deep Caves | Destroyed by as-39376 with Assembled Gauss Rifle Last Messages --------------- Reactor integration. 19045_ Hvy. Treads destroyed. 19045_ Slug penetrates as-63969. 19045_ as-63969 destroyed. 19047_ Penetrated by Slug. 19047_ T4-YPQ(b) destroyed. 19048_ Hvy. Missile Launcher destroyed. 19048_ EM Pulse Cannon destroyed. 19048_ Imp. EM Pulse Cannon destroyed. 19049_ Adv. Treads destroyed. 19052_ GOLEM Unit beginning Asb. Alloy Leg integration. 19056_ Dropped Huge Storage Unit. 19056_ Dropped Weapon Mount. 19057_ Phase Shifter destroyed. 19057_ Multitool destroyed. 19057_ Penetrated by Slug. 19057_ Critical hit (Destroy). 19057_ Adv. Treads destroyed. 19058_ Penetrated by Slug. Map ----- +----------------------------------------------------+ | ??????????????????????????????# | | ??????????????????????????????# ## ## | | ??????????????????????????????# ######### | | ????????? ????????????????????# ##???????## | | ??????? ????????????????#"# ##?????????### | | ?????? ????????????#####????????????## | | ????? ??? ?????????????????????## | | ????? ??????????????????????## | | ???? #??????????????????????# | | ???? [ [ ##?????????????????????? | | ????? [! #?????????????????????? | | ?????? #??####?????????####### | | ?????? ![ #?## ##???????# | | ?????### [ #?# ###?????# | | ?????# = a h #?# ##????# #### | | ?????# #??# #????# #??? | | ?????# a #??# ##????# ##?? | | ?????# ! ##?# #??#### ##? | | ?????# ! #?## #?## #? | | ?????### |! / #??## #?# #? | | ???????" *%/ #???# #?# ### | | ???????" % !!!!% ##### #### ### | | ???????" % !!/] ##"### | | ???????""" ! ##?## | | ???????" * / #?## | | ???????"" @ ;;##### ### | | ???????" ###???## | | ???????"" ;#??????# | | ???????" # ; ##??????# | | ???????" ## ## ## ##???????## ### | | ???????""" ## ### ## ####?????????## ### ##?? | | ????????" ?#### #?????????????#####?####??? | | ????????#########?????#??????????????????????????? | | | | | | | | | | | | | | | | | | | | | | | | | | | | | | | | | | | +----------------------------------------------------+ Best States ------------- Heat Dissipation 61 Energy Generation 27 Energy Capacity 890 Matter Stores 300 Matter Capacity 300 Sight Range 16 Robot Scan Range 20 Terrain Scan Range 18 Terrain Scan Density 210 Armor Coverage 3200 Resistance: KI 30 Weapon Shielding 100 Phase Shifting 5 Evasion (%) 47 Recoil Reduction 4 Salvage Targeting 4 Offensive Hacking 10 Trap Extractor Capacity 6 Item Schematics ----------------- Mak. Terrain Scanner | -8/Materials | Scanalyzed Imp. VTOL Module | -7/Factory | Scanalyzed Enh. Optical Array | -7/Zion | Archive Imp. Salvage Targeting Computer | -7/Zion | Archive Imp. Recalibrator | -7/Zion | Archive Lyr. Light Armor Plating | -7/Zion | Archive Plasma Rifle | -7/Zion | Archive Energy Filter | -7/Zion | Archive Thermic Laser | -7/Zion | Archive Flak Gun | -7/Zion | Archive Imp. Target Analyzer | -7/Zion | Archive Weapon Cycler | -7/Zion | Archive Imp. Focal Shield | -7/Zion | Archive Adv. Terrain Scan Processor | -7/Zion | Archive Imp. Thermal Generator | -7/Zion | Archive Hvy. Plasma Cannon | -7/Zion | Archive Hvy. Ion Cannon | -7/Zion | Archive Hvy. Mass Driver | -7/Zion | Archive Robot Schematics ------------------ M-13 Machinist | -10/Materials | Hacked S-27 Virus | -7/Zion | Archive Y-45 Defender | -7/Zion | Archive Fabricated ------------ Adv. System Shield | x1 | -7/Factory | Preloaded Repaired ---------- Imp. EM Pulse Cannon | 7% | -7/Factory Weapon Mount | 14% | -7/Factory | Corrupted Alien Tech Used ----------------- None Achievements -------------- Boltbath Killing Spree Challenges ------------ None Game ------ Seed SingularityAlphaPendant Manual? 0 Play Time 02:02:08 Cumulative 375.1 hours Start 2025.05.12 @ 15:12:24 End 2025.05.12 @ 17:18:48 Sessions 1 Manual Loads 0 Difficulty Rogue Special Mode None Game No. 183 Rogue 120 Adventurer 63 Explorer 0 Win Type - Total 8 Types 7/0/0/1/0/0/0/0/0/0 Lore% 84 Gallery% 76 Achievement% 64 Wizard Run 0 Options --------- Layout 2 ASCII 0 Keyboard 1 Movement Numpad Keybinds 0 Fullscreen 1 Font 24/Terminus Map View 50x44 Zoom Use 0% Tactical HUD 1 Map Filters NONE Filters NONE Steam 1 RUN: 356cb342-2a22-4c33-ad26-cebec7fd8730